bitfinex-derivatives/quotes_ETHF0:USTF0_20240905
["timestamp","ask_amount","ask_price","bid_price","bid_amount"]
[1725555306911,0.42219,2368.7,2368.5,0.42222]
[1725555307113,0.42221,2368.6,2368.4,0.42223]
[1725555307316,3.2078,2368.7,2368.3,0.7628]
[1725555307512,0.42219,2368.7,2368.5,0.42221]
[1725555308015,1.15348,2368.8,2368.6,0.42221]
[1725555308515,3.62995,2369.0,2368.5,1.05556]
[1725555308716,3.62995,2369.0,2368.8,0.42217]
[1725555309014,3.60539,2368.9,2368.5,0.42222]
[1725555309219,0.42218,2368.8,2368.6,0.4222]
[1725555310422,3.62994,2369.0,2368.8,0.42216]
[1725555310716,3.2078,2369.0,2368.4,1.05561]
[1725555310907,0.42217,2368.9,2368.7,0.42218]
[1725555311108,3.2078,2369.0,2368.3,0.7628]
[1725555311418,0.42221,2368.6,2368.4,0.42223]
[1725555311608,3.2078,2368.7,2368.3,0.7628]
[1725555311609,1.23358,2368.5,2368.3,0.7628]
[1725555311813,1.23358,2368.5,2368.4,0.42224]
[1725555314519,1.23358,2368.5,2368.4,1.47785]
[1725555314722,0.42219,2368.7,2368.6,0.42219]
[1725555315217,0.42222,2368.6,2368.5,0.42222]
[1725555315422,0.4222,2368.7,2368.6,0.42221]
[1725555315721,0.4222,2368.7,2368.5,0.42221]
[1725555316219,0.42221,2368.6,2368.5,0.42221]
[1725555316615,0.42221,2368.6,2368.3,0.3773]
[1725555316815,0.42221,2368.6,2368.5,0.42222]
[1725555317019,0.42224,2368.5,2368.3,0.79955]
[1725555317311,2.55,2368.4,2367.7,1.05589]
[1725555317616,1.06198404,2368.3,2368.0,0.42231]
[1725555317820,0.4223,2368.2,2368.0,0.42231]
[1725555318020,0.00632404,2368.3,2367.8,0.3794]
[1725555318209,0.00632404,2368.3,2368.2,5.08368]
[1725555318409,0.00632404,2368.3,2368.2,15.30608]
[1725555318820,0.00632404,2368.3,2368.2,15.69228]
[1725555319012,3.2078,2368.9,2368.8,0.42217]
[1725555319318,3.2078,2368.9,2368.7,0.42218]
[1725555319319,3.62995,2368.9,2368.7,0.42218]
[1725555319821,3.62995,2368.9,2368.8,0.42217]
[1725555320019,3.2078,2368.9,2368.8,0.42217]
[1725555320212,3.62997,2368.9,2368.7,0.42218]
[1725555320619,0.42219,2368.7,2368.6,0.42851404]
[1725555321013,0.42218,2368.8,2368.7,0.42219]
[1725555321220,0.42219,2368.7,2368.6,0.00632404]
[1725555321620,15.30475,2368.7,2368.6,0.00632404]
[1725555321826,19.88943329,2368.7,2368.6,0.00632404]
[1725555322023,23.72891682,2368.7,2368.6,0.00632404]
[1725555322219,19.88943329,2368.7,2368.6,0.00632404]
[1725555322825,23.72891682,2368.7,2368.6,0.00632404]
[1725555323025,0.42229,2368.2,2368.0,0.4223]
[1725555323425,1.18308,2368.3,2368.0,0.42231]
[1725555323719,1.18306,2368.3,2368.1,0.42229]
[1725555323927,0.3665,2368.3,2368.2,0.42228]
[1725555324131,3.2078,2368.4,2368.3,0.42226]
[1725555324623,0.42224,2368.5,2368.2,0.42227]
[1725555324825,2.38235596,2368.6,2368.2,0.42227]
[1725555325029,0.42225,2368.4,2368.2,0.42227]
[1725555325421,0.42226,2368.3,2368.1,0.42228]
[1725555326116,7.95898569,2368.5,2368.2,0.42227]
[1725555326117,0.42225,2368.4,2368.2,0.42227]
[1725555326321,0.42223,2368.5,2368.3,0.42226]
[1725555326527,0.7608,2368.6,2368.3,0.42226]
[1725555326824,0.42223,2368.5,2368.3,0.42226]
[1725555327025,1.18302,2368.6,2368.4,0.42224]
[1725555327220,1.18302,2368.6,2368.3,0.42224]
[1725555327423,0.42222,2368.5,2368.3,0.42224]
[1725555327727,1.18301,2368.6,2368.4,0.42224]
[1725555327923,3.2078,2368.8,2368.2,3.6057]
[1725555328127,3.62997,2368.8,2368.6,0.42219]
[1725555328424,3.2078,2368.8,2368.4,3.2078]
[1725555328727,0.3692,2369.0,2368.4,3.2078]
[1725555328728,0.3692,2369.0,2368.9,0.42215]
[1725555328928,0.79134,2369.0,2368.9,0.42215]
[1725555329123,0.00632404,2369.1,2369.0,0.42214]
[1725555329320,0.00632404,2369.1,2369.0,6.05559]
[1725555329534,0.00632404,2369.1,2369.0,5.00024]
[1725555330328,0.00632404,2369.1,2369.0,12.05559]
[1725555331025,0.00632404,2369.1,2369.0,5.00024]
[1725555331733,0.00632404,2369.1,2369.0,0.77944]
[1725555332135,3.2078,2369.6,2369.5,0.42205]
[1725555332322,0.42196,2370.0,2369.8,0.42199]
[1725555332528,0.42196,2370.0,2369.7,0.422]
[1725555333029,0.42198,2369.9,2369.7,0.422]
[1725555333229,0.42198,2369.9,2369.6,0.80292]
[1725555333931,3.42567655,2370.1,2369.6,0.3809]
[1725555334238,0.3902,2370.0,2369.6,0.80292]
[1725555334445,0.42198,2369.9,2369.6,0.80292]
[1725555334936,3.21412404,2370.1,2369.7,4.22]
[1725555335134,0.42827404,2370.1,2369.9,0.42197]
[1725555335327,0.42827404,2370.1,2369.6,0.3809]
[1725555335328,0.00632404,2370.1,2370.0,0.42196]
[1725555335732,0.00632404,2370.1,2370.0,4.64116]
[1725555336431,0.00632404,2370.1,2370.0,5.01036]
[1725555338150,0.00632404,2370.1,2370.0,3.783105]
[1725555338644,0.00632404,2370.1,2370.0,4.205065]
[1725555338846,0.42196,2370.0,2369.8,3.62978]
[1725555339043,0.805295,2369.9,2369.8,3.62978]
[1725555339447,0.805295,2369.9,2369.6,0.3809]
[1725555339648,0.805295,2369.7,2369.6,0.80292]
[1725555340548,0.00632404,2370.1,2370.0,0.42196]
[1725555340756,0.805295,2370.0,2369.9,0.42197]
[1725555341052,0.81161904,2370.1,2370.0,0.42196]
[1725555341251,0.805295,2370.0,2369.9,0.42196]
[1725555342141,0.00632404,2370.1,2370.0,0.42196]
[1725555342346,0.00632404,2370.1,2370.0,12.08866]
[1725555342544,0.00632404,2370.1,2370.0,11.03376]
[1725555342951,0.00632404,2370.1,2370.0,12.08866]
[1725555343151,0.00632404,2370.1,2370.0,14.63866]
[1725555343551,0.00632404,2370.1,2370.0,13.58376]
[1725555343752,0.00632404,2370.1,2370.0,11.03376]
[1725555344154,0.00632404,2370.1,2370.0,0.81456]
[1725555344548,0.81161904,2370.1,2370.0,0.81456]
[1725555344755,0.81161904,2370.1,2369.9,0.42196]
[1725555345053,0.805295,2370.0,2369.9,0.42197]
[1725555346160,0.00632404,2370.1,2370.0,0.42196]
[1725555346355,0.81161904,2370.1,2370.0,0.42196]
[1725555349463,0.00632404,2370.1,2370.0,8.24606]
[1725555349766,0.00632404,2370.1,2370.0,14.24606]
[1725555350560,0.00632404,2370.1,2370.0,15.30096]
[1725555351063,0.3834,2370.8,2370.0,16.98881]
[1725555351359,0.805295,2370.8,2370.7,1.47642]
[1725555351863,0.805295,2370.8,2370.7,2.24632]
[1725555352663,0.805295,2370.8,2370.7,1.19173]
[1725555352860,0.00632404,2371.0,2370.9,0.4218]
[1725555353159,0.805295,2370.8,2370.7,0.80122]
[1725555353361,0.805295,2370.8,2370.7,0.42182]
[1725555355551,1.227105,2370.8,2370.7,0.42182]
[1725555356061,0.805295,2370.8,2370.7,0.42182]
[1725555356456,1.227105,2370.8,2370.7,0.42182]
[1725555356656,1.621605,2370.8,2370.7,0.42182]
[1725555356863,1.199795,2370.8,2370.7,0.42182]
[1725555357462,0.805295,2370.8,2370.7,0.42182]
[1725555357766,0.00632404,2371.0,2370.9,0.4218]
[1725555358065,0.81161904,2371.0,2370.9,0.4218]
[1725555358564,1.23339904,2371.0,2370.9,0.4218]
[1725555359263,0.42181,2370.9,2370.5,0.00632404]
[1725555359461,0.805295,2370.8,2370.7,0.42182]
[1725555360466,0.00632404,2371.0,2370.9,0.4218]
[1725555360656,0.81161904,2371.0,2370.9,0.4218]
[1725555360963,1.23340904,2371.0,2370.8,0.805]
[1725555361159,1.23340904,2371.0,2370.9,0.4218]
[1725555361359,0.805295,2370.7,2370.5,0.00632404]
[1725555361552,0.00632404,2371.0,2370.5,0.00632404]
[1725555361553,1.227145,2370.6,2370.5,0.42819404]
[1725555361758,1.968945,2370.6,2370.5,0.42819404]
[1725555361966,1.547095,2370.6,2370.5,0.42819404]
[1725555363064,0.805295,2370.6,2370.5,1.48287404]
[1725555363454,0.38,2370.9,2370.8,0.42181]
[1725555363662,1.185295,2370.9,2370.8,0.42181]
[1725555364161,0.805295,2370.9,2370.8,1.47635]
[1725555364670,0.805295,2370.9,2370.8,1.86715]
[1725555364875,0.805295,2370.9,2370.8,2.92169]
[1725555365170,0.00632404,2371.0,2370.9,2.5308]
[1725555365370,0.00632404,2371.0,2370.9,12.5062]
[1725555367668,1.23339904,2371.0,2370.9,3.2078]
[1725555367966,0.42183,2370.8,2370.7,0.42183]
[1725555368362,1.608225,2370.8,2370.7,0.42183]
[1725555368557,1.186395,2370.8,2370.7,1.47642]
[1725555368970,1.186395,2370.8,2370.7,0.42183]
[1725555369474,1.186395,2370.8,2370.5,0.00632404]
[1725555369475,0.42185,2370.6,2370.5,0.00632404]
[1725555369770,4.434945,2370.6,2370.5,0.00632404]
[1725555370158,4.013095,2370.6,2370.5,0.42819404]
[1725555370465,0.805295,2370.6,2370.5,0.42819404]
[1725555370868,0.3811,2370.8,2370.7,0.42183]
[1725555371061,0.00632404,2371.0,2370.9,0.4218]
[1725555371462,0.81161904,2371.0,2370.9,0.4218]
[1725555372671,0.81161904,2371.0,2370.9,1.4763]
[1725555373056,0.81161904,2371.0,2370.9,5.6939]
[1725555373057,0.00632404,2371.0,2370.9,5.6939]
[1725555373868,0.81161904,2371.0,2370.9,0.4218]
[1725555374962,0.00632404,2371.0,2370.9,4.6394]
[1725555375964,0.00632404,2371.0,2370.9,5.6939]
[1725555376171,0.00632404,2371.0,2370.9,4.6394]
[1725555377375,0.81161904,2371.0,2370.9,0.4218]
[1725555378072,1.96109904,2371.0,2370.9,0.4218]
[1725555378263,1.53931904,2371.0,2370.9,0.4218]
[1725555378773,0.4218,2370.9,2370.6,0.7569]
[1725555378974,0.805295,2370.7,2370.6,0.78495]
[1725555379665,1.15581404,2371.0,2370.8,0.4218]
[1725555379666,0.4218,2370.9,2370.8,0.4218]
[1725555379869,1.15581404,2371.0,2370.8,0.4218]
[1725555380173,1.227095,2370.9,2370.8,0.4218]
[1725555380771,0.805295,2370.9,2370.8,0.4218]
[1725555381769,0.00632404,2371.0,2370.9,1.4763]
[1725555382068,0.81161904,2371.0,2370.9,0.787]
[1725555382577,0.00632404,2371.0,2370.9,6.0591]
[1725555382974,0.00632404,2371.0,2370.9,5.0046]
[1725555383171,0.00632404,2371.0,2370.9,7.1136]
[1725555384078,0.212,2371.7,2371.3,1.05431]
[1725555384278,0.81365,2371.8,2371.6,0.42167]
[1725555384672,0.805295,2371.7,2371.6,0.42167]
[1725555384881,0.805295,2371.7,2371.5,0.42168]
[1725555384882,1.226945,2371.7,2371.5,0.42168]
[1725555385183,0.42165,2371.7,2371.5,0.42168]
[1725555385374,0.805295,2371.6,2371.5,0.42168]
[1725555385771,0.805295,2371.6,2371.1,3.2078]
[1725555385968,0.42171,2371.4,2371.2,0.42174]
[1725555386179,1.589025,2371.3,2371.1,3.2078]
[1725555386382,0.805295,2371.2,2371.1,3.62955]
[1725555387880,0.362,2371.3,2371.2,0.42174]
[1725555388080,1.167295,2371.3,2371.2,0.42174]
[1725555389776,0.362,2371.3,2371.2,0.42174]
[1725555390882,0.78373,2371.3,2371.1,0.42175]
[1725555391185,4.20148353,2371.3,2370.5,7.36012404]
[1725555391480,0.42178,2371.0,2370.9,0.4218]
[1725555391884,0.3898,2371.0,2370.5,3.60532404]
[1725555392090,0.42183,2370.8,2370.6,0.42184]
[1725555392384,0.3928,2370.7,2370.6,0.42184]
[1725555392883,0.81463,2370.7,2370.6,0.42184]
[1725555393391,0.3928,2370.7,2370.6,0.42184]
[1725555394291,0.7733,2371.0,2370.9,0.4218]
[1725555394987,1.19508,2371.0,2370.8,0.4218]
[1725555395188,0.4218,2370.9,2370.8,0.4218]
[1725555395383,1.19509,2371.0,2370.8,0.4218]
[1725555395887,1.19509,2371.0,2370.5,3.21412404]
[1725555395888,0.42185,2370.7,2370.5,3.21412404]
[1725555396075,1.549995,2370.6,2370.5,3.63599404]
[1725555396478,1.971845,2370.6,2370.5,0.00632404]
[1725555397087,3.026475,2370.6,2370.5,0.00632404]
[1725555397586,9.026475,2370.6,2370.5,0.00632404]
[1725555397784,3.026475,2370.6,2370.5,0.00632404]
[1725555398384,1.971845,2370.6,2370.5,0.00632404]
[1725555401389,1.971845,2370.6,2370.5,0.42819404]
[1725555401390,1.549995,2370.6,2370.5,0.42819404]
[1725555401886,1.971845,2370.6,2370.5,0.00632404]
[1725555402087,1.971845,2370.6,2370.5,0.42819404]
[1725555403384,1.971845,2370.6,2370.5,0.00632404]
[1725555403587,1.971845,2370.6,2370.5,0.42819404]
[1725555405486,1.549995,2370.6,2370.5,0.42819404]
[1725555405687,1.167095,2370.6,2370.5,0.42819404]
[1725555407489,0.805295,2370.6,2370.5,0.42819404]
[1725555407892,0.805295,2370.6,2370.5,0.79249404]
[1725555409694,0.805295,2370.6,2370.5,0.37062404]
[1725555409895,0.805295,2370.6,2370.5,0.79249404]
[1725555412696,1.227145,2370.6,2370.5,0.79249404]
[1725555413288,1.227145,2370.6,2370.5,0.42819404]
[1725555413697,0.805295,2370.6,2370.5,0.42819404]
[1725555414200,1.227145,2370.6,2370.5,0.42819404]
[1725555414590,0.805295,2370.6,2370.5,0.42819404]
[1725555414792,1.227145,2370.6,2370.5,0.42819404]
[1725555415504,0.805295,2370.6,2370.5,0.42819404]
[1725555415701,1.227145,2370.6,2370.5,0.42819404]
[1725555416892,0.805295,2370.6,2370.5,0.42819404]
[1725555417607,3.2078,2370.8,2370.7,0.42183]
[1725555418109,4.013095,2370.8,2370.7,1.19493]
[1725555418804,4.013095,2370.8,2370.7,2.24952]
[1725555419003,0.805295,2370.8,2370.7,5.85411]
[1725555419212,0.79936,2371.2,2371.1,0.42176]
[1725555419500,1.604655,2371.2,2371.1,0.42176]
[1725555419705,0.805295,2371.2,2371.1,0.42176]
[1725555420306,1.227035,2371.2,2371.1,0.42176]
[1725555420802,1.227045,2371.2,2371.1,0.42176]
[1725555421203,0.356,2371.4,2371.3,0.42173]
[1725555421406,0.805295,2371.4,2371.3,2.55]
[1725555421599,0.00632404,2371.8,2371.7,0.42165]
[1725555422204,0.81161904,2371.8,2371.7,0.42165]
[1725555422398,1.23325904,2371.8,2371.7,0.42165]
[1725555422599,0.81161904,2371.8,2371.7,0.42165]
[1725555422796,0.81161904,2371.8,2371.7,2.97165]
[1725555423095,0.00632404,2371.8,2371.7,10.76375]
[1725555423500,0.384,2372.3,2372.1,0.42157]
[1725555423701,0.384,2372.3,2372.2,0.42157]
[1725555423900,0.805295,2372.2,2372.1,2.97158]
[1725555424204,11.87143329,2373.0,2372.6,0.42149]
[1725555424205,0.384,2372.8,2372.6,0.42149]
[1725555424407,1.189295,2372.8,2372.7,0.42148]
[1725555424710,0.42134,2373.5,2372.7,8.55]
[1725555424906,0.212,2373.7,2372.6,3.2078]
[1725555424907,0.805295,2373.1,2373.0,0.42142]
[1725555425108,0.805295,2373.1,2372.9,2.97143]
[1725555425295,0.805295,2373.1,2373.0,0.42142]
[1725555425495,1.08783607,2373.7,2373.1,0.4214]
[1725555425700,1.08783607,2373.7,2373.1,2.9714]
[1725555425701,0.805295,2373.2,2373.1,2.9714]
[1725555425896,0.805295,2373.2,2373.1,0.4214]
[1725555426202,0.00632404,2373.6,2373.1,4.635]
[1725555426398,0.805295,2373.3,2373.1,0.4214]
[1725555426594,0.805295,2373.3,2373.2,0.42139]
[1725555426798,0.805295,2373.3,2373.1,0.4214]
[1725555428207,0.805295,2373.3,2372.8,3.568]
[1725555428208,0.805295,2373.2,2372.8,3.568]
[1725555428407,0.805295,2373.2,2372.6,0.79439]
[1725555428408,0.805295,2372.9,2372.6,0.79439]
[1725555428703,0.805295,2372.8,2372.6,0.79439]
[1725555429510,0.805295,2372.8,2372.6,0.3729]
[1725555429704,0.805295,2372.8,2372.5,0.42782404]
[1725555429900,0.805295,2372.8,2372.5,0.00632404]
[1725555430106,0.805295,2372.6,2372.5,0.00632404]
[1725555431707,0.805295,2372.6,2372.5,0.42783404]
[1725555432211,0.362,2373.0,2372.7,0.42147]
[1725555432411,0.805295,2372.9,2372.7,0.42147]
[1725555432706,0.805295,2372.9,2372.6,0.42149]
[1725555433306,0.805295,2372.9,2372.7,0.42148]
[1725555433815,0.805295,2372.9,2372.6,0.42148]
[1725555434003,0.805295,2372.9,2372.7,0.42148]
[1725555434607,0.3881,2373.1,2372.7,0.42148]
[1725555434608,0.00632404,2373.6,2372.8,7.4222]
[1725555434815,0.805295,2373.2,2373.0,0.42141]
[1725555435014,0.805295,2373.2,2373.0,0.42142]
[1725555435310,0.805295,2373.2,2372.8,3.9414]
[1725555435616,1.226685,2373.2,2372.9,0.42143]
[1725555436610,3.2078,2373.4,2372.8,3.2078]
[1725555436814,0.805295,2372.9,2372.8,3.62926]
[1725555437012,0.805295,2373.0,2372.9,0.42143]
[1725555437213,0.805295,2373.1,2373.0,0.42142]
[1725555439613,0.42137,2373.3,2373.1,0.42139]
[1725555440015,0.805295,2373.2,2373.1,0.42139]
[1725555442321,1.226685,2373.2,2373.1,0.42139]
[1725555442917,0.805295,2373.2,2372.9,0.42143]
[1725555443113,0.805295,2372.9,2372.8,3.62926]
[1725555443513,1.226735,2372.9,2372.8,3.62926]
[1725555443715,0.805295,2372.9,2372.8,3.62926]
[1725555445329,1.226735,2372.9,2372.8,3.62926]
[1725555445718,1.858905,2372.9,2372.5,4.15232404]
[1725555445917,0.805295,2372.6,2372.5,4.57383404]
[1725555446221,1.0536,2373.0,2372.7,0.42146]
[1725555446413,0.42145,2372.9,2372.8,0.42145]
[1725555446814,0.805295,2372.9,2372.8,0.42145]
[1725555447517,3.2078,2373.5,2372.8,10.2144]
[1725555447823,0.42138,2373.3,2373.1,0.42139]
[1725555448022,0.42138,2373.3,2373.2,0.42139]
[1725555448324,1.226675,2373.3,2373.1,2.97139]
[1725555448514,0.805295,2373.2,2373.1,2.97139]
[1725555449114,3.2078,2373.5,2373.4,0.42135]
[1725555449323,4.013095,2373.5,2373.4,2.97135]
[1725555449816,0.00632404,2373.6,2373.5,0.42133]
[1725555450019,0.81161904,2373.6,2373.5,0.42133]
[1725555450616,1.23293904,2373.6,2373.5,0.42133]
[1725555451023,0.81161904,2373.6,2373.5,0.42133]
[1725555451225,1.23293904,2373.6,2373.5,0.42133]
[1725555451627,0.81161904,2373.6,2373.5,0.42133]
[1725555453318,0.81161904,2373.6,2373.5,5.68747]
[1725555453319,0.00632404,2373.6,2373.5,5.68747]
[1725555453523,0.00632404,2373.6,2373.5,11.68747]
[1725555453721,0.00632404,2373.6,2373.5,10.63413]
[1725555454420,0.00632404,2373.6,2373.5,12.74081]
[1725555454624,0.3691,2374.2,2374.1,2.97123]
[1725555454827,1.174395,2374.2,2374.1,2.97123]
[1725555455223,3.2078,2374.5,2374.4,0.42118]
[1725555455429,0.3945,2374.7,2374.6,0.42114]
[1725555455622,1.20396583,2374.7,2374.6,2.97114]
[1725555456232,0.80946583,2374.7,2374.6,2.97114]
[1725555456427,0.00417083,2374.7,2374.6,7.18234]
[1725555457335,0.00417083,2374.7,2374.6,10.39014]
[1725555457727,0.00417083,2374.7,2374.6,16.39014]
[1725555457924,0.00417083,2374.7,2374.6,17.24014]
[1725555459627,0.00417083,2374.7,2374.6,14.03234]
[1725555461223,1.23059583,2374.7,2374.4,3.82117]
[1725555461430,0.805295,2374.5,2374.4,3.82117]
[1725555461629,0.805295,2374.5,2374.4,3.82118]
[1725555461830,0.805295,2374.5,2374.4,3.4]
[1725555462035,0.805295,2374.5,2374.4,3.82118]
[1725555462332,0.00417083,2374.7,2374.6,0.42114]
[1725555462631,0.00417083,2374.7,2374.6,3.82114]
[1725555462835,0.4225,2375.0,2374.9,0.42109]
[1725555463037,0.4225,2375.0,2374.9,3.82109]
[1725555463329,1.227795,2375.0,2374.9,3.82109]
[1725555463736,1.227795,2375.0,2374.8,0.42109]
[1725555464039,1.227795,2374.9,2374.8,0.42109]
[1725555464238,1.227795,2374.9,2374.7,6.6078]
[1725555464433,0.805295,2374.8,2374.7,7.02892]
[1725555465133,0.805295,2374.8,2374.7,6.6078]
[1725555465340,0.805295,2374.8,2374.4,3.4]
[1725555465528,0.805295,2374.5,2374.4,3.82118]
[1725555466637,0.8436,2374.9,2374.7,0.42112]
[1725555466638,0.4225,2374.9,2374.7,0.42112]
[1725555466831,0.84359,2374.9,2374.7,0.42112]
[1725555467026,0.805295,2374.8,2374.7,0.42112]
[1725555467732,1.226405,2374.8,2374.6,0.42113]
[1725555467932,0.805295,2374.7,2374.6,0.42113]
[1725555468532,1.226425,2374.7,2374.5,0.42115]
[1725555468727,0.42112,2374.8,2374.6,0.42114]
[1725555468927,0.805295,2374.7,2374.6,0.42114]
[1725555469241,1.226415,2374.7,2374.5,0.42114]
[1725555469434,0.81152,2374.8,2374.6,0.42114]
[1725555469737,0.805295,2374.5,2374.4,3.82118]
[1725555470531,0.42097,2375.6,2375.4,0.421]
[1725555470745,0.805295,2375.5,2375.4,3.821]
[1725555471035,1.127,2375.9,2375.8,0.42093]
[1725555471036,0.7672,2375.9,2375.8,0.42093]
[1725555471235,1.182095,2375.9,2375.8,3.82093]
[1725555472434,3.5982,2376.3,2376.2,0.42086]
[1725555472637,3.5982,2376.3,2376.2,3.82086]
[1725555472638,4.013095,2376.3,2376.2,3.82086]
[1725555472943,4.013095,2376.3,2375.7,6.6078]
[1725555473134,0.805295,2375.8,2375.7,7.02874]
[1725555473741,0.3614,2376.4,2375.7,16.8166]
[1725555473935,0.805295,2376.2,2376.1,3.82087]
[1725555474536,0.3768,2376.6,2376.5,0.4208]
[1725555474940,0.805295,2376.6,2376.5,0.4208]
[1725555476143,0.805295,2376.6,2376.4,3.4]
[1725555476541,0.805295,2376.6,2376.4,3.82081]
[1725555477245,0.805295,2376.6,2376.5,0.4208]
[1725555477552,0.805295,2376.6,2376.4,3.82081]
[1725555477847,0.805295,2376.5,2376.2,3.4]
[1725555478040,0.805295,2376.3,2376.2,3.82086]
[1725555479648,0.805295,2376.3,2376.2,3.4]
[1725555480034,0.805295,2376.3,2376.2,2.55]
[1725555480443,0.805295,2376.3,2376.0,3.2078]
[1725555480646,0.805295,2376.1,2376.0,6.17869]
[1725555480943,0.805295,2376.1,2376.0,2.55]
[1725555481244,4.013095,2376.1,2375.6,6.70232404]
[1725555481447,0.805295,2375.7,2375.6,7.12328404]
[1725555481747,0.805295,2375.7,2375.6,2.97728404]
[1725555482449,1.226235,2375.7,2375.6,2.55632404]
[1725555483241,0.805295,2375.7,2375.6,2.55632404]
[1725555483441,0.805295,2375.7,2375.6,2.97728404]
[1725555484048,0.805295,2375.7,2375.6,3.82728404]
[1725555484447,0.3757,2376.3,2375.6,14.66833404]
[1725555484648,0.805295,2376.0,2375.7,4.62383]
[1725555484845,0.805295,2376.0,2375.9,0.42091]
[1725555485147,0.805295,2376.0,2375.9,3.82091]
[1725555485341,0.3892,2376.4,2376.3,0.42084]
[1725555485543,0.3892,2376.4,2375.9,7.6088]
[1725555485544,0.805295,2376.1,2376.0,0.42089]
[1725555485945,0.805295,2376.1,2375.9,3.4]
[1725555485946,0.805295,2376.1,2375.7,11.1175]
[1725555486141,0.805295,2376.1,2375.7,6.9715]
[1725555486142,0.805295,2375.9,2375.7,6.9715]
[1725555486555,0.805295,2375.9,2375.8,0.42091]
[1725555486741,0.805295,2375.9,2375.7,7.02873]
[1725555486938,0.805295,2375.9,2375.7,3.4]
[1725555487142,0.805295,2375.8,2375.6,0.00632404]
[1725555487339,0.3619,2375.8,2375.7,0.42094]
[1725555487743,1.167195,2375.8,2375.7,0.42094]
[1725555488050,0.3687,2376.1,2376.0,0.42089]
[1725555488253,0.78957,2376.1,2375.9,0.4209]
[1725555488551,0.805295,2376.0,2375.7,3.4]
[1725555488750,0.4209,2376.0,2375.9,0.42091]
[1725555489046,0.4209,2376.0,2375.8,0.42091]
[1725555489252,1.226215,2375.9,2375.7,3.82093]
[1725555489449,0.805295,2375.8,2375.7,3.82094]
[1725555492150,0.3687,2376.1,2376.0,0.42089]
[1725555492357,1.173995,2376.1,2376.0,0.42089]
[1725555492549,1.173995,2376.1,2375.7,6.6078]
[1725555492745,0.42091,2375.9,2375.8,0.42092]
[1725555493052,0.4209,2376.0,2375.9,0.4209]
[1725555493245,0.42089,2376.0,2375.8,0.42091]
[1725555493449,0.42091,2375.9,2375.8,0.42091]
[1725555493651,1.226205,2375.9,2375.8,0.42091]
[1725555493844,0.805295,2375.9,2375.8,0.42091]
[1725555494053,1.226205,2375.9,2375.8,0.42091]
[1725555494550,0.42094,2375.7,2375.6,0.00632404]
[1725555494749,2.278605,2375.7,2375.6,0.00632404]
[1725555495455,9.330975,2375.7,2375.6,0.00632404]
[1725555495949,3.330975,2375.7,2375.6,0.00632404]
[1725555496146,9.330975,2375.7,2375.6,0.00632404]
[1725555497161,9.330975,2375.7,2375.0,3.2078]
[1725555497162,0.37792096,2375.2,2375.0,3.2078]
[1725555497456,0.37792096,2375.1,2375.0,3.62885]
[1725555497751,0.79897096,2375.1,2375.0,3.62885]
[1725555498355,0.37792096,2375.1,2375.0,3.62885]
[1725555499556,0.42735404,2375.3,2375.2,0.42103]
[1725555500059,0.805275,2375.3,2375.2,0.42103]
[1725555500753,0.805275,2375.3,2374.9,4.45272]
[1725555500955,0.42106,2375.1,2375.0,0.42105]
[1725555501158,0.37792096,2375.0,2374.9,3.82109]
[1725555501750,1.47381,2374.9,2374.8,0.00632404]
[1725555502055,1.10882096,2374.9,2374.6,0.42113]
[1725555502254,0.3631,2374.9,2374.8,3.8211]
[1725555502560,0.36492404,2375.3,2374.8,3.4]
[1725555502769,0.37792096,2375.0,2374.9,0.42109]
[1725555503066,0.384245,2375.3,2375.2,1.47362]
[1725555503355,0.384245,2375.3,2375.2,8.08142]
[1725555503950,0.3631,2375.9,2375.2,8.08142]
[1725555503951,0.78401,2375.9,2375.7,0.42094]
[1725555504148,0.3631,2375.9,2375.6,2.55]
[1725555504347,0.37792096,2375.7,2375.6,2.55]
[1725555504560,0.37792096,2375.7,2375.6,2.97096]
[1725555505958,0.37792096,2375.7,2375.6,2.55]
[1725555506864,0.42099,2375.5,2375.4,2.55]
[1725555507059,0.42096,2375.7,2375.4,2.971]
[1725555507260,0.37792096,2375.5,2375.4,2.971]
[1725555507563,0.37792096,2375.5,2375.4,2.55]
[1725555507764,0.42094,2375.8,2375.5,0.42097]
[1725555507964,0.37792096,2375.6,2375.5,0.42097]
[1725555513272,0.00632404,2375.9,2375.8,1.47325]
[1725555513475,0.00632404,2375.9,2375.8,4.02325]
[1725555513675,0.00632404,2375.9,2375.8,8.23205]
[1725555513878,0.00632404,2375.9,2375.8,8.61275]
[1725555514876,0.00632404,2375.9,2375.8,0.80163]
[1725555515076,0.384245,2375.9,2375.8,0.80163]
[1725555515279,1.436525,2375.9,2375.5,3.5875]
[1725555515578,0.37792096,2375.6,2375.5,3.62878]
[1725555515969,0.37792096,2375.6,2375.5,4.68124]
[1725555516172,0.00632404,2375.9,2375.8,0.42093]
[1725555516579,0.384245,2375.9,2375.8,0.42093]
[1725555517279,0.805155,2375.9,2375.8,0.42093]
[1725555517780,0.384245,2375.9,2375.8,0.42093]
[1725555519372,0.00632404,2375.9,2375.8,8.23205]
[1725555519578,0.00632404,2375.9,2375.8,11.82855]
[1725555519973,0.384245,2375.9,2375.8,7.61975]
[1725555521672,0.384245,2375.9,2375.8,7.99525]
[1725555524873,0.00632404,2375.9,2375.8,13.25637]
[1725555525083,3.2078,2376.4,2376.3,0.42084]
[1725555525476,3.58572096,2376.4,2376.3,0.42084]
[1725555525682,0.37792096,2376.4,2376.3,0.42084]
[1725555525982,0.37792096,2376.4,2376.3,1.83224]
[1725555526171,0.37792096,2376.4,2376.3,4.38224]
[1725555526371,0.3753,2376.8,2376.7,0.42077]
[1725555526770,0.75322096,2376.8,2376.7,0.42077]